fUSD/lending_fUSD_20250525
["ID","MTS","AMOUNT","RATE_DAILY","PERIOD"]
[362279878,1748149843123,-6158.97157376,0.0002,2]
[362279879,1748149843179,-806.0,0.000195,2]
[362279880,1748149843189,-5082.59832006,0.0002,2]
[362279887,1748149846356,-15243.95568418,0.0002,2]
[362279888,1748149846371,-539.75,0.0002,2]
[362279889,1748149846382,-2788.0297121,0.0002,2]
[362279890,1748150083874,387.48,0.00013699,2]
[362279893,1748150528406,1338.07117959,7.945e-05,2]
[362279894,1748150528427,2841.97998709,7.945e-05,2]
[362279895,1748150528447,2841.97998709,7.945e-05,2]
[362279896,1748150528472,2841.97998709,7.945e-05,2]
[362279897,1748150528492,2841.97998709,7.945e-05,2]
[362279898,1748150528516,2831.45980001,7.945e-05,2]
[362279899,1748150528538,2831.45980001,7.945e-05,2]
[362279900,1748150528560,2831.45980001,7.945e-05,2]
[362279901,1748150528581,626.10217602,7.945e-05,2]
[362279902,1748150755028,1671.08224735,6.94e-05,2]
[362279903,1748150762228,534.27537664,8e-05,2]
[362279904,1748150762269,1843.25126156,8e-05,2]
[362279905,1748150852127,-207.0,0.0001818,2]
[362279906,1748150852149,-204.07682284,0.00018999,2]
[362279907,1748150868980,-236.71937516,0.00017109,2]
[362279908,1748150871697,-160.14915463,0.00017109,2]
[362279909,1748150873770,-15.07147021,0.00017109,2]
[362279915,1748150922054,490.33869651,0.00013368,2]
[362279922,1748151031951,-887.0,0.00018999,2]
[362279923,1748151031961,-717.93530567,0.00019,2]
[362279924,1748151032064,-1379.00469433,0.00019,2]
[362279925,1748151032074,-2096.94,0.00019,2]
[362279926,1748151032084,-2096.94,0.00019,2]
[362279927,1748151032093,-1733.42260746,0.00019,2]
[362279928,1748151032120,-363.51739254,0.00019,2]
[362279929,1748151032130,-485.49882832,0.00019,2]
[362279930,1748151032142,-1048.80954549,0.00019,2]
[362279931,1748151032233,-562.63162619,0.00019,2]
[362279932,1748151032243,-539.29,0.00019001,2]
[362279933,1748151032252,-1000.0,0.00019001,2]
[362279934,1748151032262,-150.0,0.0001901,7]
[362279935,1748151032272,-411.94,0.00019373,2]
[362279936,1748151032282,-209.0,0.0001951,2]
[362279937,1748151032292,-155.901917,0.00019599,2]
[362279938,1748151032301,-216.0983003,0.000198,2]
[362279939,1748151032310,-207.4,0.00019888,2]
[362279940,1748151032319,-554.12619936,0.0001989,2]
[362279941,1748151032336,-517.70502891,0.0001989,2]
[362279957,1748151037922,-1077.0,0.0001908,2]
[362279958,1748151037932,-8249.79873387,0.0001989,2]
[362279959,1748151037944,-692.74999987,0.0001989,2]
[362279960,1748151038030,-1003.55473723,0.0001989,2]
[362279976,1748151040125,-1077.0,0.00018126,2]
[362279977,1748151040134,-386.28206245,0.0001989,2]
[362279978,1748151040143,-500.0,0.00019899,2]
[362279979,1748151040152,-1316.2014,0.00019899,2]
[362279980,1748151040161,-1000.0,0.00019899,2]
[362279981,1748151040172,-2500.0,0.00019899,2]
[362279982,1748151040182,-25758.291,0.000199,2]
[362279983,1748151040192,-327.51544842,0.000199,2]
[362279984,1748151040202,-458.56,0.000199,2]
[362279985,1748151040213,-806.0,0.000199,2]
[362279986,1748151040223,-429.59247178,0.000199,2]
[362279987,1748151040235,-368.463,0.00019987,2]
[362279988,1748151040244,-151.0,0.00019988,2]
[362279989,1748151040254,-74565.5233925,0.00019996,2]
[362279990,1748151040263,-11537.6855504,0.00019996,2]
[362279991,1748151040272,-5511.1629516,0.00019996,2]
[362279992,1748151040283,-3676.0053193,0.00019996,2]
[362279993,1748151040295,-499.98,0.00019998,2]
[362279994,1748151040305,-500.0,0.00019998,2]
[362279995,1748151040316,-448.71674003,0.00019998,2]
[362279996,1748151040328,-471.90918214,0.00019998,2]
[362279997,1748151040337,-453.25693464,0.00019998,2]
[362279998,1748151040347,-442.68128329,0.00019998,2]
[362279999,1748151040356,-448.3471975,0.00019998,2]
[362280000,1748151040365,-427.21,0.00019998,2]
[362280001,1748151040376,-420.0,0.00019998,2]
[362280002,1748151040386,-420.0,0.00019998,2]
[362280003,1748151040395,-420.0,0.00019998,2]
[362280004,1748151040405,-1297.74,0.00019998,2]
[362280005,1748151040414,-420.0,0.00019998,2]
[362280006,1748151040423,-420.0,0.00019998,2]
[362280007,1748151040433,-420.0,0.00019998,2]
[362280008,1748151040442,-420.0,0.00019998,2]
[362280009,1748151040451,-897.73,0.00019998,2]
[362280010,1748151040460,-420.0,0.00019998,2]
[362280011,1748151040470,-420.0,0.00019998,2]
[362280012,1748151040479,-420.0,0.00019998,2]
[362280013,1748151040489,-420.0,0.00019998,2]
[362280014,1748151040498,-420.0,0.00019998,2]
[362280015,1748151040508,-420.0,0.00019998,2]
[362280016,1748151040517,-420.0,0.00019998,2]
[362280017,1748151040526,-420.0,0.00019998,2]
[362280018,1748151040535,-420.0,0.00019998,2]
[362280019,1748151040544,-420.0,0.00019998,2]
[362280020,1748151040554,-420.0,0.00019998,2]
[362280021,1748151040563,-420.0,0.00019998,2]
[362280022,1748151040572,-420.0,0.00019998,2]
[362280023,1748151040581,-420.0,0.00019998,2]
[362280024,1748151040591,-420.0,0.00019998,2]
[362280025,1748151040604,-203.4025073,0.00019998,2]
[362280026,1748151040613,-162.25523186,0.00019998,2]
[362280027,1748151040622,-500.0,0.00019999,2]
[362280028,1748151040631,-433.63703301,0.00019999,2]
[362280029,1748151040642,-433.62717936,0.00019999,2]
[362280030,1748151040651,-527.84929381,0.00019999,2]
[362280031,1748151040660,-232.45716507,0.00019999,2]
[362280032,1748151040669,-150.0,0.00019999,2]
[362280033,1748151040679,-500.0,0.00019999,2]
[362280034,1748151040688,-427.21,0.00019999,2]
[362280035,1748151040698,-427.21,0.00019999,2]
[362280036,1748151040708,-427.21,0.00019999,2]
[362280037,1748151040717,-427.21,0.00019999,2]
[362280038,1748151040726,-427.21,0.00019999,2]
[362280039,1748151040735,-427.21,0.00019999,2]
[362280040,1748151040744,-427.21,0.00019999,2]
[362280041,1748151040754,-427.21,0.00019999,2]
[362280042,1748151040763,-427.21,0.00019999,2]
[362280043,1748151040773,-427.21,0.00019999,2]
[362280044,1748151040782,-427.21,0.00019999,2]
[362280045,1748151040791,-427.21,0.00019999,2]
[362280046,1748151040800,-427.21,0.00019999,2]
[362280047,1748151040809,-427.21,0.00019999,2]
[362280048,1748151040818,-427.21,0.00019999,2]
[362280049,1748151040827,-427.21,0.00019999,2]
[362280050,1748151040836,-427.21,0.00019999,2]
[362280051,1748151040845,-427.21,0.00019999,2]
[362280052,1748151040854,-427.21,0.00019999,2]
[362280053,1748151040863,-427.21,0.00019999,2]
[362280054,1748151040872,-427.21,0.00019999,2]
[362280055,1748151040881,-427.21,0.00019999,2]
[362280056,1748151040890,-427.37,0.00019999,2]
[362280057,1748151040899,-420.0,0.00019999,2]
[362280058,1748151040908,-420.0,0.00019999,2]
[362280059,1748151040918,-420.0,0.00019999,2]
[362280060,1748151040926,-420.0,0.00019999,2]
[362280061,1748151040936,-420.0,0.00019999,2]
[362280062,1748151040944,-420.0,0.00019999,2]
[362280063,1748151040953,-420.0,0.00019999,2]
[362280064,1748151040962,-420.0,0.00019999,2]
[362280065,1748151040971,-420.0,0.00019999,2]
[362280066,1748151040980,-420.0,0.00019999,2]
[362280067,1748151040989,-420.0,0.00019999,2]
[362280068,1748151040998,-420.0,0.00019999,2]
[362280069,1748151041007,-554.68070805,0.00019999,2]
[362280070,1748151041017,-420.0,0.00019999,2]
[362280071,1748151041026,-420.0,0.00019999,2]
[362280072,1748151041035,-420.0,0.00019999,2]
[362280073,1748151041044,-420.0,0.00019999,2]
[362280074,1748151041053,-420.0,0.00019999,2]
[362280075,1748151041063,-420.0,0.00019999,2]
[362280076,1748151041073,-420.0,0.00019999,2]
[362280077,1748151041082,-420.0,0.00019999,2]
[362280078,1748151041091,-420.0,0.00019999,2]
[362280079,1748151041100,-420.0,0.00019999,2]
[362280080,1748151041109,-454.0595566,0.00019999,2]
[362280081,1748151041119,-420.0,0.00019999,2]
[362280082,1748151041128,-420.0,0.00019999,2]
[362280083,1748151041137,-420.0,0.00019999,2]
[362280084,1748151041147,-420.0,0.00019999,2]
[362280085,1748151041156,-420.0,0.00019999,2]
[362280086,1748151041165,-420.0,0.00019999,2]
[362280087,1748151041174,-420.0,0.00019999,2]
[362280088,1748151041184,-1297.74,0.00019999,2]
[362280089,1748151041193,-1297.74,0.00019999,2]
[362280090,1748151041202,-1297.74,0.00019999,2]
[362280091,1748151041211,-1297.74,0.00019999,2]
[362280092,1748151041220,-1297.74,0.00019999,2]
[362280093,1748151041230,-1297.74,0.00019999,2]
[362280094,1748151041239,-1297.74,0.00019999,2]
[362280095,1748151041248,-1297.74,0.00019999,2]
[362280096,1748151041258,-1297.74,0.00019999,2]
[362280097,1748151041267,-1297.74,0.00019999,2]
[362280098,1748151041276,-1297.74,0.00019999,2]
[362280099,1748151041285,-1297.74,0.00019999,2]
[362280100,1748151041294,-1297.74,0.00019999,2]
[362280101,1748151041303,-1297.74,0.00019999,2]
[362280102,1748151041312,-1297.74,0.00019999,2]
[362280103,1748151041321,-1297.74,0.00019999,2]
[362280104,1748151041331,-1297.74,0.00019999,2]
[362280105,1748151041340,-1297.74,0.00019999,2]
[362280106,1748151041349,-1297.74,0.00019999,2]
[362280107,1748151041358,-1297.74,0.00019999,2]
[362280108,1748151041367,-1297.74,0.00019999,2]
[362280109,1748151041376,-1297.74,0.00019999,2]
[362280110,1748151041385,-1297.79605792,0.00019999,2]
[362280111,1748151041394,-2845.2336507,0.00019999,2]
[362280112,1748151041631,-420.0,0.00019999,2]
[362280113,1748151041642,-420.0,0.00019999,2]
[362280114,1748151041652,-420.0,0.00019999,2]
[362280115,1748151041661,-420.0,0.00019999,2]
[362280116,1748151041672,-370.25,0.00019999,2]
[362280117,1748151041681,-2869.45068078,0.00019999,2]
[362280118,1748151041692,-420.0,0.00019999,2]
[362280119,1748151041701,-420.0,0.00019999,2]
[362280120,1748151041710,-153.4,0.00019999,2]
[362280121,1748151041720,-897.73,0.00019999,2]
[362280122,1748151041730,-897.73,0.00019999,2]
[362280123,1748151041739,-897.73,0.00019999,2]
[362280124,1748151041749,-897.73,0.00019999,2]
[362280125,1748151041759,-897.73,0.00019999,2]
[362280126,1748151041768,-897.73,0.00019999,2]
[362280127,1748151041777,-897.73,0.00019999,2]
[362280128,1748151041786,-897.73,0.00019999,2]
[362280129,1748151041796,-897.73,0.00019999,2]
[362280130,1748151041807,-897.73,0.00019999,2]
[362280131,1748151041816,-897.73,0.00019999,2]
[362280132,1748151041826,-897.73,0.00019999,2]
[362280133,1748151041835,-897.73,0.00019999,2]
[362280134,1748151041844,-897.73,0.00019999,2]
[362280135,1748151041853,-420.0,0.00019999,2]
[362280136,1748151041863,-897.73,0.00019999,2]
[362280137,1748151041873,-420.0,0.00019999,2]
[362280138,1748151041883,-897.73,0.00019999,2]
[362280139,1748151041893,-420.0,0.00019999,2]
[362280140,1748151041902,-897.73,0.00019999,2]
[362280141,1748151041911,-897.73,0.00019999,2]
[362280142,1748151041921,-897.73,0.00019999,2]
[362280143,1748151041930,-897.73,0.00019999,2]
[362280144,1748151041939,-897.73,0.00019999,2]
[362280145,1748151041949,-897.73,0.00019999,2]
[362280146,1748151041959,-897.93,0.00019999,2]
[362280147,1748151041969,-420.0,0.00019999,2]
[362280148,1748151041979,-420.0,0.00019999,2]
[362280149,1748151041988,-420.0,0.00019999,2]
[362280150,1748151041999,-420.0,0.00019999,2]
[362280151,1748151042016,-420.0,0.00019999,2]
[362280152,1748151042026,-420.0,0.00019999,2]
[362280153,1748151042035,-229.08,0.00019999,2]
[362280154,1748151042044,-420.0,0.00019999,2]
[362280155,1748151042054,-420.0,0.00019999,2]
[362280156,1748151042064,-420.0,0.00019999,2]
[362280157,1748151042073,-420.0,0.00019999,2]
[362280158,1748151042083,-420.0,0.00019999,2]
[362280159,1748151042092,-420.0,0.00019999,2]
[362280160,1748151042102,-420.0,0.00019999,2]
[362280161,1748151042111,-420.0,0.00019999,2]
[362280162,1748151042120,-420.0,0.00019999,2]
[362280163,1748151042130,-420.0,0.00019999,2]
[362280164,1748151042140,-420.0,0.00019999,2]
[362280165,1748151042150,-420.0,0.00019999,2]
[362280166,1748151042159,-420.0,0.00019999,2]
[362280167,1748151042169,-420.0,0.00019999,2]
[362280168,1748151042178,-420.0,0.00019999,2]
[362280169,1748151042187,-420.0,0.00019999,2]
[362280170,1748151042197,-478.37483806,0.00019999,2]
[362280171,1748151042207,-420.0,0.00019999,2]
[362280172,1748151042216,-519.18,0.00019999,2]
[362280173,1748151042225,-420.0,0.00019999,2]
[362280174,1748151042235,-420.0,0.00019999,2]
[362280175,1748151042244,-420.0,0.00019999,2]
[362280176,1748151042253,-420.0,0.00019999,2]
[362280177,1748151042262,-420.0,0.00019999,2]
[362280178,1748151042272,-281.20476375,0.00019999,2]
[362280179,1748151042281,-420.0,0.00019999,2]
[362280180,1748151042290,-420.0,0.00019999,2]
[362280181,1748151042299,-420.0,0.00019999,2]
[362280182,1748151042308,-420.0,0.00019999,2]
[362280183,1748151042318,-420.0,0.00019999,2]
[362280184,1748151042327,-175.04,0.00019999,2]
[362280185,1748151042337,-420.0,0.00019999,2]
[362280186,1748151042347,-171.4,0.00019999,2]
[362280187,1748151042356,-20000.0,0.00019999,2]
[362280188,1748151042366,-279.71252305,0.0002,2]
[362280189,1748151042375,-644270.95585101,0.0002,2]
[362280190,1748151042385,-745607.588113,0.0002,2]
[362280191,1748151042607,-27007.92213625,0.0002,2]
[362280196,1748151044052,-918.4,0.000199,2]
[362280197,1748151044062,-46963.6362158,0.00019996,2]
[362280198,1748151044072,-20867.2061663,0.0002,2]
[362280200,1748151046143,-33619.9999999,0.0002,2]
[362280201,1748151046255,-11676.07141206,0.0002,2]
[362280753,1748151149450,399.15,0.00013699,2]
[362280754,1748151215931,3005.46,0.00026,120]
[362280755,1748151227611,98.71984194,0.00015,2]
[362280756,1748151227639,151.28015806,0.00015,2]
[362280757,1748151228706,-179.19975584,0.00017,2]
[362280758,1748151230732,-120.80024416,0.00017,2]
[362280759,1748151381995,461.0,0.00025999,120]
[362280760,1748151398121,1072.58,0.00025,60]
[362280761,1748151546495,-365.58529554,0.00018,2]
[362280762,1748151549947,-252.09924603,0.00018,2]
[362280763,1748151725824,150.0,1e-08,2]
[362280764,1748151965326,-167.90075397,0.00017185,2]
[362280765,1748151968426,-152.0,0.00017185,2]
[362280766,1748151973494,-213.62924603,0.00017185,2]
[362280767,1748152052178,-182.40078053,0.000189,2]
[362280768,1748152052202,-300.0,0.00018999,2]
[362280769,1748152052223,-106.48924796,0.00019,2]
[362280772,1748152232094,-1200.0,0.00018999,2]
[362280773,1748152232103,-196.34075204,0.00019,2]
[362280774,1748152232113,-302.83,0.00019,2]
[362280775,1748152232122,-302.83,0.00019,2]
[362280776,1748152232133,-120.00552928,0.00019,2]
[362280777,1748152232150,-182.82447072,0.00019,2]
[362280778,1748152232159,-725.50960107,0.00019,2]
[362280779,1748152232207,-1914.05789893,0.00019,2]
[362280780,1748152232217,-302.83,0.00019,2]
[362280781,1748152232227,-33.11209607,0.00019,2]
[362280782,1748152232265,-316.88790393,0.00019,2]
[362280783,1748152232276,-435.0,0.00019028,2]
[362280784,1748152232286,-150.0,0.0001903,7]
[362280785,1748152232296,-282.70268754,0.00019034,2]
[362280786,1748152232324,-794.29731246,0.00019034,2]
[362280787,1748152232333,-420.0,0.00019186,2]
[362280788,1748152232343,-207.83,0.00019295,2]
[362280789,1748152232353,-533.53,0.00019449,2]
[362280790,1748152232363,-1423.92,0.000195,2]
[362280791,1748152232373,-806.0,0.000195,2]
[362280792,1748152232382,-150.0,0.000195,2]
[362280793,1748152232391,-460.06,0.000195,2]
[362280794,1748152232403,-806.0,0.000195,2]
[362280795,1748152232414,-330.36268749,0.000195,2]
[362280796,1748152232429,-554.52019698,0.000195,2]
[362280810,1748152238035,-288.66711553,0.000195,2]
[362280811,1748152238051,-701.20622502,0.000195,2]
[362280812,1748152238091,-104.79377498,0.000195,2]
[362280813,1748152238102,-1492.51,0.000195,2]
[362280814,1748152238113,-460.06,0.000195,2]
[362280815,1748152238124,-1159.67,0.000195,2]
[362280816,1748152238134,-155.901917,0.00019599,2]
[362280817,1748152238144,-460.06,0.000198,2]
[362280818,1748152238154,-460.06,0.000198,2]
[362280819,1748152238163,-460.06,0.000198,2]
[362280820,1748152238172,-460.06,0.000198,2]
[362280821,1748152238182,-915.4,0.000198,2]
[362280822,1748152238192,-150.43,0.000198,2]
[362280823,1748152238201,-806.0,0.000198,2]
[362280824,1748152238211,-207.4,0.00019888,2]
[362280825,1748152238221,-2500.0,0.000199,2]
[362280826,1748152238230,-611.28575189,0.000199,2]
[362280827,1748152238239,-247.71317032,0.00019988,2]
[362280828,1748152238248,-136.03138581,0.00019996,2]
[362280829,1748152238263,-1113.25646616,0.00019996,2]
[362280830,1748152238274,-316.73,0.00019996,2]
[362280831,1748152238315,-898.40451209,0.00019996,2]
[362281030,1748152240327,-627.61108775,0.00019996,2]
[362281033,1748152240338,-15173.69012699,0.00019996,2]
[362281035,1748152240347,-1713.9225918,0.00019996,2]
[362281036,1748152240359,-1438.0532809,0.00019996,2]
[362281038,1748152240368,-902.8404783,0.00019996,2]
[362281040,1748152240377,-442.21966946,0.00019997,2]
[362281042,1748152240386,-575.53275506,0.00019997,2]
[362281044,1748152240396,-500.0,0.00019998,2]
[362281046,1748152240406,-500.0,0.00019998,2]
[362281049,1748152240416,-426.04757075,0.00019998,2]
[362281051,1748152240425,-430.07011099,0.00019998,2]
[362281053,1748152240435,-420.0,0.00019998,2]
[362281055,1748152240445,-296.03604232,0.00019998,2]
[362281057,1748152240454,-441.15624924,0.00019998,2]
[362281059,1748152240463,-424.57889349,0.00019998,2]
[362281061,1748152240472,-431.40598089,0.00019998,2]
[362281063,1748152240481,-422.29786945,0.00019998,2]
[362281065,1748152240491,-420.0,0.00019998,2]
[362281067,1748152240502,-427.04735708,0.00019998,2]
[362281069,1748152240511,-499.99,0.00019998,2]
[362281071,1748152240520,-319.70026735,0.00019999,2]
[362281073,1748152240531,-294.77,0.00019999,2]
[362281075,1748152240540,-209.4337212,0.00019999,2]
[362281077,1748152240549,-379.50821876,0.00019999,2]
[362281079,1748152240560,-429.70074802,0.00019999,2]
[362281081,1748152240569,-420.0,0.00019999,2]
[362281083,1748152240578,-234.40656692,0.00019999,2]
[362281085,1748152240587,-420.0,0.00019999,2]
[362281087,1748152240596,-443.0,0.00019999,2]
[362281089,1748152240606,-357.68886246,0.00019999,2]
[362281091,1748152240615,-420.0,0.00019999,2]
[362281093,1748152240625,-420.0,0.00019999,2]
[362281095,1748152240634,-420.0,0.00019999,2]
[362281097,1748152240643,-420.0,0.00019999,2]
[362281099,1748152240653,-420.0,0.00019999,2]
[362281101,1748152240663,-420.0,0.00019999,2]
[362281103,1748152240672,-420.0,0.00019999,2]
[362281105,1748152240681,-420.0,0.00019999,2]
[362281107,1748152240691,-420.0,0.00019999,2]
[362281109,1748152240700,-420.0,0.00019999,2]
[362281111,1748152240710,-420.0,0.00019999,2]
[362281114,1748152240725,-420.0,0.00019999,2]
[362281116,1748152240735,-420.0,0.00019999,2]
[362281118,1748152240745,-420.0,0.00019999,2]
[362281120,1748152240755,-420.0,0.00019999,2]
[362281122,1748152240764,-420.0,0.00019999,2]
[362281123,1748152240773,-420.0,0.00019999,2]
[362281125,1748152240783,-420.0,0.00019999,2]
[362281127,1748152240793,-420.0,0.00019999,2]
[362281130,1748152240803,-554.68070805,0.00019999,2]
[362281132,1748152240812,-420.0,0.00019999,2]
[362281134,1748152240821,-420.0,0.00019999,2]
[362281136,1748152240831,-420.0,0.00019999,2]
[362281138,1748152240840,-420.0,0.00019999,2]
[362281140,1748152240850,-420.0,0.00019999,2]
[362281141,1748152240859,-420.0,0.00019999,2]
[362281144,1748152240868,-433.38140389,0.00019999,2]
[362281146,1748152240877,-420.0,0.00019999,2]
[362281148,1748152240887,-420.0,0.00019999,2]
[362281150,1748152240896,-420.0,0.00019999,2]
[362281152,1748152240906,-420.0,0.00019999,2]
[362281154,1748152240915,-420.0,0.00019999,2]
[362281155,1748152240924,-420.0,0.00019999,2]
[362281157,1748152240933,-865.16,0.00019999,2]
[362281159,1748152240943,-865.16,0.00019999,2]
[362281161,1748152240952,-865.16,0.00019999,2]
[362281163,1748152240961,-865.16,0.00019999,2]
[362281165,1748152240971,-865.16,0.00019999,2]
[362281167,1748152240980,-865.16,0.00019999,2]
[362281169,1748152240989,-865.16,0.00019999,2]
[362281171,1748152240999,-865.16,0.00019999,2]
[362281173,1748152241008,-865.16,0.00019999,2]
[362281175,1748152241017,-865.16,0.00019999,2]
[362281177,1748152241027,-865.16,0.00019999,2]
[362281179,1748152241036,-865.16,0.00019999,2]
[362281181,1748152241049,-865.16,0.00019999,2]
[362281183,1748152241058,-865.16,0.00019999,2]
[362281185,1748152241068,-865.16,0.00019999,2]
[362281187,1748152241077,-865.16,0.00019999,2]
[362281189,1748152241088,-865.16,0.00019999,2]
[362281192,1748152241098,-865.16,0.00019999,2]
[362281194,1748152241107,-553.58,0.00019999,2]
[362281196,1748152241118,-865.16,0.00019999,2]
[362281198,1748152241127,-865.16,0.00019999,2]
[362281200,1748152241136,-865.16,0.00019999,2]
[362281202,1748152241145,-865.16,0.00019999,2]
[362281204,1748152241155,-865.16,0.00019999,2]
[362281206,1748152241164,-865.21605792,0.00019999,2]
[362281207,1748152241173,-420.0,0.00019999,2]
[362281209,1748152241182,-420.0,0.00019999,2]
[362281211,1748152241192,-420.0,0.00019999,2]
[362281213,1748152241201,-370.25,0.00019999,2]
[362281215,1748152241211,-500.0,0.00019999,2]
[362281217,1748152241220,-420.0,0.00019999,2]
[362281219,1748152241230,-420.0,0.00019999,2]
[362281222,1748152241240,-420.0,0.00019999,2]
[362281224,1748152241249,-420.0,0.00019999,2]
[362281226,1748152241259,-710.71,0.00019999,2]
[362281228,1748152241268,-710.71,0.00019999,2]
[362281230,1748152241278,-710.71,0.00019999,2]
[362281232,1748152241287,-710.71,0.00019999,2]
[362281234,1748152241297,-710.71,0.00019999,2]
[362281236,1748152241308,-710.71,0.00019999,2]
[362281238,1748152241317,-710.71,0.00019999,2]
[362281240,1748152241327,-710.71,0.00019999,2]
[362281242,1748152241336,-710.71,0.00019999,2]
[362281244,1748152241346,-710.71,0.00019999,2]
[362281246,1748152241356,-710.71,0.00019999,2]
[362281248,1748152241365,-710.71,0.00019999,2]
[362281250,1748152241374,-710.71,0.00019999,2]
[362281252,1748152241384,-710.71,0.00019999,2]
[362281254,1748152241393,-710.71,0.00019999,2]
[362281256,1748152241403,-710.71,0.00019999,2]
[362281258,1748152241412,-710.71,0.00019999,2]
[362281260,1748152241421,-710.71,0.00019999,2]
[362281262,1748152241430,-710.71,0.00019999,2]
[362281264,1748152241439,-710.71,0.00019999,2]
[362281266,1748152241449,-710.71,0.00019999,2]
[362281268,1748152241458,-710.71,0.00019999,2]
[362281270,1748152241467,-710.71,0.00019999,2]
[362281272,1748152241476,-710.74,0.00019999,2]
[362281274,1748152241486,-420.0,0.00019999,2]
[362281276,1748152241495,-519.18,0.00019999,2]
[362281278,1748152241505,-433.63703301,0.00019999,2]
[362281280,1748152241514,-420.0,0.00019999,2]
[362281282,1748152241523,-420.0,0.00019999,2]
[362281284,1748152241533,-420.0,0.00019999,2]
[362281286,1748152241543,-281.20476375,0.00019999,2]
[362281288,1748152241552,-433.62717936,0.00019999,2]
[362281290,1748152241561,-527.84929381,0.00019999,2]
[362281292,1748152241570,-420.0,0.00019999,2]
[362281294,1748152241581,-229.08,0.00019999,2]
[362281296,1748152241590,-420.0,0.00019999,2]
[362281298,1748152241599,-420.0,0.00019999,2]
[362281300,1748152241608,-420.0,0.00019999,2]
[362281302,1748152241618,-420.0,0.00019999,2]
[362281304,1748152241628,-420.0,0.00019999,2]
[362281306,1748152241637,-420.0,0.00019999,2]
[362281308,1748152241647,-420.0,0.00019999,2]
[362281310,1748152241656,-420.0,0.00019999,2]
[362281312,1748152241665,-420.0,0.00019999,2]
[362281314,1748152241675,-420.0,0.00019999,2]
[362281316,1748152241684,-420.0,0.00019999,2]
[362281318,1748152241693,-420.0,0.00019999,2]
[362281320,1748152241703,-420.0,0.00019999,2]
[362281322,1748152241712,-478.37483806,0.00019999,2]
[362281324,1748152241722,-420.0,0.00019999,2]
[362281326,1748152241731,-420.0,0.00019999,2]
[362281328,1748152241741,-420.0,0.00019999,2]
[362281330,1748152241750,-420.0,0.00019999,2]
[362281332,1748152241760,-420.0,0.00019999,2]
[362281334,1748152241769,-175.04,0.00019999,2]
[362281336,1748152241778,-420.0,0.00019999,2]
[362281338,1748152241787,-420.0,0.00019999,2]
[362281340,1748152241796,-420.0,0.00019999,2]
[362281342,1748152241806,-432.25809783,0.00019999,2]
[362281344,1748152241816,-420.0,0.00019999,2]
[362281346,1748152241825,-171.4,0.00019999,2]
[362281348,1748152241834,-434.1646758,0.00019999,2]
[362281350,1748152241844,-428.35565525,0.00019999,2]
[362281352,1748152241853,-420.0,0.00019999,2]
[362281354,1748152241863,-264.88,0.00019999,2]
[362281356,1748152241873,-420.0,0.00019999,2]
[362281358,1748152241883,-323.44834498,0.00019999,2]
[362281360,1748152241892,-20000.0,0.00019999,2]
[362281362,1748152241902,-279.71252305,0.0002,2]